Cogmind - Beta 10.2 @@@ ROGUE MODE // 2021.02.16 @ 19:55:21 Player: Momo Result: Self-destructed Performance ------------- Evolutions (1) 500 Regions Visited (3) 600 Robots Destroyed (20) 100 Value Destroyed (331) 331 Prototype IDs (0) 0 Alien Tech Used (0) 0 Bonus (75) 75 TOTAL SCORE: 1606 Bonus ------- Pacifist 200 Friendly Fire -125 Cogmind --------- Core Integrity 282/400 Matter 15/300 Energy 76/100 System Corruption 0% Temperature Cool (0) Movement Treading (152) Location -9/Materials Parts ------- > --- POWER (1) -------- (None) > --- PROPULSION (2) --- Light Treads Advanced Treads > --- UTILITY (4) ------ Small Storage Unit > --- WEAPON (2) ------- (None) > --- INVENTORY (6) ---- Improved Signal Interpreter Improved Trap Extractor Mining Laser Plasma Flamer Heavy Flail Peak State ------------ > --- POWER ------------ Light Angular Momentum Engine > --- PROPULSION ------- Advanced Treads Flight Unit > --- UTILITY ---------- Cryofiber Web Small Storage Unit Hardened Medium Armor Plating Improved Light Armor Plating > --- WEAPON ----------- Flak Cannon Flak Cannon > --- INVENTORY -------- Improved Signal Interpreter Improved Trap Extractor Mining Laser Plasma Flamer Heavy Flail [Rating: 26] Favorites ----------- Power Light Ion Engine Engine Light Ion Engine Propulsion Advanced Treads Treads Advanced Treads Wheel Compact Wheel Flight Unit Flight Unit Utility Small Storage Unit Device Cryofiber Web Storage Small Storage Unit Protection Improved Light Armor Plating Weapon Flak Cannon Ballistic Cannon Flak Cannon Build | -11 -10 -10 -9 ------- Run | Scr Mat Min Mat Slots Evolved 2 | . . . 2 Power . | . . . . Propulsion . | . . . . Utility 2 | . . . 2 Weapon . | . . . . Parts Attached 14 | 3 . 6 5 Power 2 | 1 . . 1 Engine 2 | 1 . . 1 Core . | . . . . Reactor . | . . . . Propulsion 5 | 2 . 1 2 Treads 2 | . . 1 1 Leg . | . . . . Wheel 2 | 2 . . . Hover . | . . . . Flight 1 | . . . 1 Utility 5 | . . 3 2 Device 1 | . . . 1 Storage 1 | . . 1 . Processor . | . . . . Hackware . | . . . . Protection 3 | . . 2 1 Artifact . | . . . . Weapon 2 | . . 2 . Energy Gun . | . . . . Energy Cannon . | . . . . Ballistic Gun . | . . . . Ballistic Cannon 2 | . . 2 . Launcher . | . . . . Special Weapon . | . . . . Impact Weapon . | . . . . Slashing Weapon . | . . . . Piercing Weapon . | . . . . Special Melee Weapon . | . . . . Unidentified Prototypes . | . . . . Parts Lost 3 | . . . 3 Power 1 | . . . 1 Propulsion . | . . . . Utility 2 | . . . 2 Weapon . | . . . . Highest Loss Streak 2 | . . . 2 Average Slot Usage (%) 76 | . 14 36 87 Engine 9 | . 14 14 8 Treads 13 | . . 4 15 Flight 2 | . . . 3 Device 8 | . . . 10 Storage 9 | . . 2 11 Protection 16 | . . 7 19 Ballistic Cannon 15 | . . 8 17 Naked Turns . | . . . . Heaviest Build 37 | 3 3 27 37 Greatest Support 42 | 16 3 22 42 Greatest Overweight (x) 5 | . . 5 1 Average Overweight (x) . | . . . . Largest Inventory Capacity 6 | 4 4 6 6 Average Capacity 5 | 4 4 4 6 Most Carried 5 | 1 2 5 5 Average Carried 4 | . 1 3 4 Final Capacity 6 | 4 4 6 6 Final Carried 5 | 1 2 5 5 Class Distribution -------------------- 100% | Mutant Dominant Class ---------------- Mutant | -10/Materials Mutant | -10/Mines Mutant | -9/Materials Resources | -11 -10 -10 -9 ----------- Run | Scr Mat Min Mat Matter Collected 376 | 133 . 14 229 Remotely . | . . . . Salvage Created 403 | . . . 403 Parts 38 | . . . 38 Haulers Intercepted 2 | . . . 2 Recyclers Shooed . | . . . . Parts Field Recycled . | . . . . Retrieved Matter . | . . . . Parts Self-Destructed . | . . . . Prevented . | . . . . Kills | -11 -10 -10 -9 ------- Run | Scr Mat Min Mat Combat Hostiles Destroyed 16 | . . . 16 Cannons 15 | . . . 15 AOE 1 | . . . 1 Classes Destroyed 5 | . . . 5 Hauler 2 | . . . 2 Watcher 1 | . . . 1 Swarmer 11 | . . . 11 Grunt 4 | . . . 4 Sentry 1 | . . . 1 Thug 1 | . . . 1 Best Kill Streak 6 | . . . 6 Combat Bots Only 6 | . . . 6 Max Kills in Single Turn 3 | . . . 3 Gunslinging . | . . . . Exploded 1 | . . . 1 Melee . | . . . . Uniques/NPCs Destroyed . | . . . . Combat | -11 -10 -10 -9 -------- Run | Scr Mat Min Mat Damage Taken 839 | . . 21 818 Core 118 | . . . 118 Absorbed by Shields . | . . . . Core Remaining (%) 100 | 100 . 100 . Volleys Fired 30 | . . . 30 Largest 2 | . . . 2 Hottest 88 | . . . 88 Shots Fired 56 | . . . 56 Gun . | . . . . Cannon 56 | . . . 56 Launcher . | . . . . Special . | . . . . Kinetic 56 | . . . 56 Thermal . | . . . . Explosive . | . . . . Electromagnetic . | . . . . Robot Hit Streak 9 | . . . 9 Robot Miss Streak 12 | . . . 12 Penetration Max . | . . . . Secondary Targets . | . . . . Shots Hit Robots 46 | . . . 46 Core Hits 40 | . . . 40 Critical Hits . | . . . . Critical Kills . | . . . . Critical Parts Destroyed . | . . . . Melee Attacks . | . . . . Impact . | . . . . Slashing . | . . . . Piercing . | . . . . Sneak Attacks . | . . . . Combat Hostiles . | . . . . Follow-up Attacks . | . . . . Damage Inflicted 667 | . . . 667 Guns . | . . . . Cannons 609 | . . . 609 Explosions 58 | . . . 58 Melee . | . . . . Ramming . | . . . . Kinetic 609 | . . . 609 Thermal 58 | . . . 58 Explosive . | . . . . Electromagnetic . | . . . . Impact . | . . . . Slashing . | . . . . Piercing . | . . . . Highest Corruption . | . . . . Average Corruption . | . . . . Corruption Purged . | . . . . Overload Shots . | . . . . Overflow Damage . | . . . . Projectiles . | . . . . Explosions . | . . . . Melee . | . . . . Knockbacks 18 | . . . 18 Impact . | . . . . Kinetic 18 | . . . 18 Secondary . | . . . . Self-Inflicted Damage 75 | . . . 75 Shots 1 | . . . 1 Rammed . | . . . . Targets Rammed . | . . . . Kicked . | . . . . Crushed . | . . . . Highest Temperature 249 | . . . 249 Average Temperature 108 | . . . 108 Received Heat Transfer 198 | . . . 198 Effects 3 | . . . 3 Interference 3 | . . . 3 Siege Activations . | . . . . Robots Corrupted . | . . . . Combat Hostiles . | . . . . Parts Fried . | . . . . Impact Corruptions . | . . . . Robots Melted . | . . . . Combat Hostiles . | . . . . Parts Melted . | . . . . Heat Transferred 50 | . . . 50 Parts Sabotaged . | . . . . Parts Stolen . | . . . . Parts Stripped . | . . . . Power Chain Reactions . | . . . . Missiles Intercepted . | . . . . Alert | -11 -10 -10 -9 ------- Run | Scr Mat Min Mat Peak Influence 397 | . 15 5 397 Initial 5 | . . 5 1 Average 160 | . 13 5 201 Maximum Alert Level 1 | . . . 1 Low Security (%) 70 | 100 100 100 62 Level 1 29 | . . . 37 Level 2 . | . . . . Level 3 . | . . . . Level 4 . | . . . . Level 5 . | . . . . High Security . | . . . . Max Security . | . . . . Squads Dispatched 3 | . 1 . 2 Investigation . | . . . . Extermination . | . . . . Reinforcement 3 | . 1 . 2 Assault . | . . . . Garrison . | . . . . Intercept . | . . . . Construction Impeded . | . . . . Haulers Reinforced . | . . . . Stealth | -11 -10 -10 -9 --------- Run | Scr Mat Min Mat Distress Signals 1 | . . . 1 Communications Jammed . | . . . . Distress Signals . | . . . . Times Spotted 37 | . 1 . 36 Peak Tracking Total 6 | . . . 6 Tactical Retreats 3 | . . . 3 Traps | -11 -10 -10 -9 ------- Run | Scr Mat Min Mat Traps Triggered 2 | . . . 2 Indirectly . | . . . . Trap Hack Attempts . | . . . . Triggered . | . . . . Disarmed . | . . . . Reprogrammed . | . . . . Reused . | . . . . Traps Extracted . | . . . . Installed . | . . . . Triggered . | . . . . Machines | -11 -10 -10 -9 ---------- Run | Scr Mat Min Mat Machines Disabled 2 | . . . 2 Max in Single Turn 2 | . . . 2 Machines Sabotaged . | . . . . Garrisons Compromised . | . . . . Overloaded Fab Kills . | . . . . Fab Network Shutdowns . | . . . . Hacking | -11 -10 -10 -9 --------- Run | Scr Mat Min Mat Machines Accessed 3 | . . 1 2 Terminals 2 | . . . 2 Fabricators . | . . . . Repair Stations . | . . . . Recycling Units . | . . . . Scanalyzers . | . . . . Garrison Access . | . . . . Total Hacks 7 | . . 1 6 Successful 3 | . . 1 2 Failed 4 | . . . 4 Catastrophic 2 | . . . 2 Database Lockouts . | . . . . Manual 4 | . . . 4 Terminals 6 | . . . 6 Fabricators . | . . . . Repair Stations . | . . . . Recycling Units . | . . . . Scanalyzers . | . . . . Garrison Access . | . . . . Terminal Hacks 2 | . . 1 1 Open Door 1 | . . 1 . Zone Layout 1 | . . . 1 Fabricator Hacks . | . . . . Repair Station Hacks . | . . . . Recycling Unit Hacks . | . . . . Scanalyzer . | . . . . Garrison Access Hacks . | . . . . Unauthorized Hacks 1 | . . . 1 Terminals 1 | . . . 1 Assimilate 1 | . . . 1 Fabricators . | . . . . Repair Stations . | . . . . Recycling Units . | . . . . Scanalyzers . | . . . . Garrison Access . | . . . . Data Cores Recovered . | . . . . Used . | . . . . Hacking Detections 2 | . . . 2 Full Trace Events . | . . . . Feedback Events . | . . . . Feedback Blocked . | . . . . Robot Schematics Acquired . | . . . . Robots Built . | . . . . Matter . | . . . . Time . | . . . . Total Robot Build Rating . | . . . . Part Schematics Acquired . | . . . . Parts Built . | . . . . Matter . | . . . . Time . | . . . . Total Part Build Rating . | . . . . Parts Repaired . | . . . . Time . | . . . . Parts Recycled . | . . . . Recycled Matter . | . . . . Retrieved Matter . | . . . . Retrieved Components . | . . . . Parts Scanalyzed . | . . . . Part Schematics Acquired . | . . . . Parts Damaged . | . . . . Bothacking | -11 -10 -10 -9 ------------ Run | Scr Mat Min Mat Used RIF Installer . | . . . . Robots Hacked . | . . . . Non-combat . | . . . . Combat . | . . . . Robot Hacks Applied . | . . . . Relay Couplers Released . | . . . . Robots Rewired . | . . . . Allies Hacked . | . . . . Hacks Repelled . | . . . . Allies | -11 -10 -10 -9 -------- Run | Scr Mat Min Mat Total Allies . | . . . . Largest Group . | . . . . Highest-Rated Group . | . . . . Highest-Rated Ally . | . . . . Total Orders . | . . . . Ally Attacks . | . . . . Total Damage . | . . . . Kills . | . . . . Allies Corrupted . | . . . . Allies Melted . | . . . . Intel | -11 -10 -10 -9 ------- Run | Scr Mat Min Mat Robot Analysis Total . | . . . . Derelict Logs Recovered . | . . . . Drone Launches . | . . . . Drone Recoveries . | . . . . Exploration | -11 -10 -10 -9 ------------- Run | Scr Mat Min Mat Turns Passed 809 | 24 34 113 638 Spaces Moved 558 | 33 65 133 327 Core 211 | 32 65 114 . Treads 346 | . . 19 327 Legs . | . . . . Wheels 1 | 1 . . . Hover . | . . . . Flight . | . . . . Fastest Speed 50 | 50 50 50 152 Average Speed 118 | 51 50 70 159 Slowest Speed 300 | 100 50 300 165 Overloaded Moves . | . . . . Propulsion Burnouts . | . . . . Robots Hopped . | . . . . Cave-ins Triggered . | . . . . Exploration Rate (%) 24 | 3 17 26 52 Regions Visited 3 Branch Regions 1 Pre-discovered Areas . | . . . . Known Exits Taken . | . . . . Unknown Exits Taken 3 | 1 1 1 . Scrap Searched 1 | . . 1 . Spaces Dug . | . . . . Terrain Destroyed 43 | . . . 43 Melee . | . . . . Projectile . | . . . . AOE 43 | . . . 43 Terrain Rammed . | . . . . Walls Destroyed . | . . . . Machines Disabled . | . . . . Actions | -11 -10 -10 -9 --------- Run | Scr Mat Min Mat Total 639 | 38 65 150 386 Wait 30 | . . 9 21 Move 555 | 32 64 132 327 Hop . | . . . . Pick Up 7 | 1 1 3 2 Fast Attach 11 | 3 . 5 3 Attach 2 | . . . 2 Detach . | . . . . Swap 1 | . . 1 . Drop 3 | 2 . . 1 Fire 30 | . . . 30 Melee . | . . . . Ram . | . . . . Kick . | . . . . Crush . | . . . . Escape Stasis . | . . . . Rewire . | . . . . Trap . | . . . . Miscellaneous . | . . . . Route ------- -11/Scrapyard -10/Materials -10/Mines -9/Materials (discovered 2 exits: [*Mat x2]) History --------- Turn | Location | Event 3 | -11/Scrapyard | Discovered new exit (range 15) 25 | -11/Scrapyard | Entered Materials 47 | -10/Materials | Discovered new exit (range 7) 59 | -10/Materials | Entered Mines 71 | -10/Mines | A weapon hastily lodged in a ceiling crevice suddenly fell to the ground 114 | -10/Mines | Discovered new exit (range 13) 120 | -10/Mines | Met a Derelict who couldn't figure out how to use a Trap Extractor 172 | -10/Mines | Entered Materials 172 | -9/Materials | Evolved 2 slots: Utility x2 308 | -9/Materials | Build established: Mutant 330 | -9/Materials | Discovered new exit (range 10) 600 | -9/Materials | Discovered new exit (range 7) 810 | -9/Materials | Self-destructed Last Messages --------------- 00689_ Triggered Blade Trap. 00689_ Massive razor-sharp blades shoot up from within the floor. 00689_ Hrd. Medium Armor Plating severed. 00689_ Lgt. Angular Momentum Engine severed. 00689_ K-01 Serf collects debris. 00689_ U-05 Engineer lays Concrete. 00691_ Triggered Blade Trap. 00691_ Massive razor-sharp blades shoot up from within the floor. 00691_ Flak Cannon severed. 00710_ O-16 Technician: "IFF HANDSHAKE FAILED. SECURING TERMINAL." 00718_ Connecting with Terminal... >>Trojan(Assimilate) Trojan loaded successfully. Testing... System interface override in place. 00719_ ALERT: Hostiles spotted, dispatching reinforcements to Terminal M007. 00719_ Connecting with Terminal... 00808_ Cryofiber Web destroyed. 00809_ Imp. Light Armor Plating destroyed. Map ----- +----------------------------------------------------+ | #?????????????????????????????????????????????? | | ""???????????????????????????????????????????????? | | ""???????????????????????????????????????????????? | | ?????????????????????????????????????????????????? | | ?????????????????????????????????????????????????? | | #######??????????????????????????????????????????? | | [[[[!!#??????????????????????????????????????????? | | [[[[!!#??????????????????????????????????????????? | | #??????????????????????????????????????????? | | ########## ????????????????????????????????? | | =[ ???????????????????????????????? | | * ???????????????????????????????? | | ???????????????????????????????? | | ## ###########???????????????????????????????????? | | ?# #????????????????????????????? ?????????????? | | ?# #????????????????????????????# #????????????? | | ?# #????????????????????????????# #????????????? | | ?# #?????????????????????######## #????????????? | | ?# #?????????????????????# #????????????? | | ?# #???????????#?????????# #####????????? | | ?# ###?????????# ??????# t # ##???????? | | ?# +?????????# +?????# #"""#### "" #???????? | | ?# ##?????????# #?????# # " ##??????? | | ?# #??????????# #?????# # # #??????? | | ?# #??????##### ####### # # #??????? | | ## #????#?# @ s#* # #??????? | | #???? # s/% #""#??????? | | #????? # [[ u s# s/ #??????? | | ## #??????+ [/ k### ## #"*#??????? | | ## #??????# [/ #?#g## !##!#??????? | | ## #??????# !!=###/#########"###]#??????? | | / #??????# !!=# !#####/###????? | | ## #??????# !!=#/ ## ] #????? | | ## #??????# [ # """ """ ## ###### | | ## #??????# #= """ """ ## ! # # | | ## ######## # """ """ ## # " # | | # #### # ## ""# T # | | #??# #! ## ! ""# " # | | #??# #######+###+## T"# =# | | #??# #????# ^ # ""# # | | #??# #????#^ ^ + ""# / # | | #??# < #????# !!! # # # | | #??# #????# !!! ######## # | | #??############ !!! ### ##/### | | = | | | | ###############################"T"###### ###### | | ??????????????????????????????#"""#????######????? | | ??????????????????????????????#####??????????????? | | ?????????????????????????????????????????????????? | +----------------------------------------------------+ Best States ------------- Heat Dissipation 28 Energy Generation 18 Energy Capacity 150 Matter Stores 217 Matter Capacity 300 Sight Range 16 Terrain Scan Density 10 Base Temperature (-) 100 Armor Coverage 375 Evasion (%) 50 Recoil Reduction 2 Item Schematics ----------------- None Robot Schematics ------------------ None Fabricated ------------ Nothing Alien Tech Used ----------------- None Achievements -------------- None Challenges ------------ None Game ------ Seed ThermalSurgeFirepult Manual? 0 Play Time 00:09:17 Cumulative 205.1 hours Start 2021.02.16 @ 19:49:53 End 2021.02.16 @ 19:55:21 Sessions 1 Manual Loads 0 Difficulty Rogue Special Mode None Game No. 91 Rogue 87 Adventurer 0 Explorer 4 Win Type - Total 12 Types 4/0/2/2/0/2/2/0/0 Lore% 73 Gallery% 78 Achievement% 67 Wizard Run 0 Options --------- ASCII 0 Keyboard 0 Movement Mouse Keybinds 0 Fullscreen 1 Font 18/SmallcapsGlow Map View 76x50 Tactical HUD 1 Map Filters NONE Filters NONE Steam 1 RUN: 60ea021b-0066-422c-be36-e6e14028a6ae